Cogmind - Beta 10.2 *** ADVENTURER MODE // 2021.01.04 @ 20:13:55 Player: Yog-Sothoth Result: Self-destructed Performance ------------- Evolutions (1) 500 Regions Visited (2) 400 Robots Destroyed (5) 25 Value Destroyed (70) 70 Prototype IDs (3) 60 Alien Tech Used (0) 0 Bonus (0) 0 TOTAL SCORE: 1055 Bonus ------- None Cogmind --------- Core Integrity 390/400 Matter 218/300 Energy 116/150 System Corruption 0% Temperature Cool (59) Movement Hovering (56) Location -9/Materials Parts ------- > --- POWER (2) -------- Light Ion Engine Light Ion Engine > --- PROPULSION (2) --- Hover Unit Hover Unit > --- UTILITY (3) ------ Structural Scanner Hacking Suite > --- WEAPON (2) ------- Light EM Pulse Cannon > --- INVENTORY (4) ---- Armored Wheel Armored Wheel Light EM Pulse Cannon Flail Peak State ------------ > --- POWER ------------ Light Ion Engine Light Ion Engine > --- PROPULSION ------- Armored Wheel Armored Wheel > --- UTILITY ---------- Small Storage Unit Structural Scanner Hardened Light Armor Plating > --- WEAPON ----------- Light EM Pulse Cannon Light EM Pulse Cannon > --- INVENTORY -------- (None) [Rating: 14] Favorites ----------- Power Light Ion Engine Engine Light Ion Engine Propulsion Armored Wheel Wheel Armored Wheel Hover Unit Hover Unit Utility Small Storage Unit Device Structural Scanner Storage Small Storage Unit Hackware Hacking Suite Protection Hardened Light Armor Plating Weapon Light EM Pulse Cannon Energy Gun Small Laser Energy Cannon Light EM Pulse Cannon Build | -11 -10 -9 ------- Run | Scr Mat Mat Slots Evolved 2 | . . 2 Power 1 | . . 1 Propulsion . | . . . Utility 1 | . . 1 Weapon . | . . . Parts Attached 16 | 6 5 5 Power 2 | 1 . 1 Engine 2 | 1 . 1 Core . | . . . Reactor . | . . . Propulsion 6 | 2 2 2 Treads . | . . . Leg . | . . . Wheel 4 | 2 2 . Hover 2 | . . 2 Flight . | . . . Utility 4 | 1 1 2 Device 1 | . 1 . Storage 1 | 1 . . Processor . | . . . Hackware 1 | . . 1 Protection 1 | . . 1 Artifact . | . . . Weapon 4 | 2 2 . Energy Gun 2 | 2 . . Energy Cannon 2 | . 2 . Ballistic Gun . | . . . Ballistic Cannon . | . . . Launcher . | . . . Special Weapon . | . . . Impact Weapon . | . . . Slashing Weapon . | . . . Piercing Weapon . | . . . Special Melee Weapon . | . . . Unidentified Prototypes . | . . . Parts Lost . | . . . Power . | . . . Propulsion . | . . . Utility . | . . . Weapon . | . . . Highest Loss Streak . | . . . Average Slot Usage (%) 92 | . 93 92 Engine 16 | . 14 20 Wheel 23 | . 28 17 Hover 1 | . . 4 Device 8 | . 7 11 Storage 11 | . 14 8 Protection 2 | . . 7 Energy Gun 3 | . 5 . Energy Cannon 21 | . 22 19 Naked Turns . | . . . Heaviest Build 24 | 10 16 24 Greatest Support 26 | 26 26 24 Greatest Overweight (x) . | . . . Average Overweight (x) . | . . . Largest Inventory Capacity 6 | 6 6 6 Average Capacity 5 | 5 6 5 Most Carried 4 | 2 4 4 Average Carried 1 | 1 1 1 Final Capacity 6 | 6 6 4 Final Carried 4 | 2 1 4 Class Distribution -------------------- 100% | Mutant Dominant Class ---------------- Mutant | -10/Materials Mutant | -9/Materials Resources | -11 -10 -9 ----------- Run | Scr Mat Mat Matter Collected 278 | 185 30 63 Remotely . | . . . Salvage Created 128 | . 30 98 Parts 11 | . . 11 Haulers Intercepted 1 | . . 1 Recyclers Shooed . | . . . Parts Field Recycled . | . . . Retrieved Matter . | . . . Parts Self-Destructed . | . . . Prevented . | . . . Kills | -11 -10 -9 ------- Run | Scr Mat Mat Combat Hostiles Destroyed 1 | . . 1 Cannons 1 | . . 1 Classes Destroyed 4 | . 1 3 Hauler 1 | . . 1 Operator 1 | . . 1 Watcher 2 | . 1 1 Swarmer 1 | . . 1 Best Kill Streak 2 | . 1 2 Combat Bots Only 1 | . . 1 Max Kills in Single Turn 1 | . 1 1 Gunslinging . | . . . Exploded . | . . . Melee . | . . . Uniques/NPCs Destroyed . | . . . Combat | -11 -10 -9 -------- Run | Scr Mat Mat Damage Taken 91 | . . 91 Core 10 | . . 10 Absorbed by Shields . | . . . Core Remaining (%) 100 | 100 100 . Volleys Fired 8 | . 2 6 Largest 2 | . 2 2 Hottest 112 | . 112 112 Shots Fired 13 | . 4 9 Gun . | . . . Cannon 13 | . 4 9 Launcher . | . . . Special . | . . . Kinetic . | . . . Thermal . | . . . Explosive . | . . . Electromagnetic 13 | . 4 9 Robot Hit Streak 5 | . 3 5 Robot Miss Streak 1 | . . 1 Penetration Max . | . . . Secondary Targets . | . . . Shots Hit Robots 9 | . 3 6 Core Hits 5 | . 1 4 Critical Hits . | . . . Critical Kills . | . . . Critical Parts Destroyed . | . . . Melee Attacks . | . . . Impact . | . . . Slashing . | . . . Piercing . | . . . Sneak Attacks . | . . . Combat Hostiles . | . . . Follow-up Attacks . | . . . Damage Inflicted 234 | . 108 126 Guns . | . . . Cannons 234 | . 108 126 Explosions . | . . . Melee . | . . . Ramming . | . . . Kinetic . | . . . Thermal . | . . . Explosive . | . . . Electromagnetic 234 | . 108 126 Impact . | . . . Slashing . | . . . Piercing . | . . . Highest Corruption . | . . . Average Corruption . | . . . Corruption Purged . | . . . Overload Shots . | . . . Overflow Damage 18 | . 18 . Projectiles 18 | . 18 . Explosions . | . . . Melee . | . . . Knockbacks . | . . . Impact . | . . . Kinetic . | . . . Secondary . | . . . Self-Inflicted Damage . | . . . Shots . | . . . Rammed . | . . . Targets Rammed . | . . . Kicked . | . . . Crushed . | . . . Highest Temperature 144 | . 82 144 Average Temperature 51 | . 41 55 Received Heat Transfer 9 | . . 9 Siege Activations . | . . . Robots Corrupted . | . . . Combat Hostiles . | . . . Parts Fried 3 | . 3 . Impact Corruptions . | . . . Robots Melted . | . . . Combat Hostiles . | . . . Parts Melted . | . . . Heat Transferred . | . . . Parts Sabotaged . | . . . Parts Stolen . | . . . Parts Stripped . | . . . Power Chain Reactions . | . . . Missiles Intercepted . | . . . Alert | -11 -10 -9 ------- Run | Scr Mat Mat Peak Influence 95 | . 22 95 Initial 7 | . . 7 Average 14 | . 10 29 Maximum Alert Level . | . . . Low Security (%) 100 | 100 100 100 Level 1 . | . . . Level 2 . | . . . Level 3 . | . . . Level 4 . | . . . Level 5 . | . . . High Security . | . . . Max Security . | . . . Squads Dispatched 1 | . . 1 Investigation . | . . . Extermination . | . . . Reinforcement 1 | . . 1 Assault . | . . . Garrison . | . . . Intercept . | . . . Construction Impeded . | . . . Haulers Reinforced . | . . . Stealth | -11 -10 -9 --------- Run | Scr Mat Mat Distress Signals 1 | . . 1 Communications Jammed . | . . . Distress Signals . | . . . Times Spotted 12 | . 1 11 Peak Tracking Total 9 | . 1 9 Tactical Retreats . | . . . Traps | -11 -10 -9 ------- Run | Scr Mat Mat Traps Triggered . | . . . Indirectly . | . . . Trap Hack Attempts . | . . . Triggered . | . . . Disarmed . | . . . Reprogrammed . | . . . Reused . | . . . Traps Extracted . | . . . Installed . | . . . Triggered . | . . . Machines | -11 -10 -9 ---------- Run | Scr Mat Mat Machines Disabled 2 | . 1 1 Max in Single Turn 1 | . 1 1 Machines Sabotaged . | . . . Garrisons Compromised . | . . . Overloaded Fab Kills . | . . . Fab Network Shutdowns . | . . . Hacking | -11 -10 -9 --------- Run | Scr Mat Mat Machines Accessed 3 | . 3 . Terminals 3 | . 3 . Fabricators . | . . . Repair Stations . | . . . Recycling Units . | . . . Scanalyzers . | . . . Garrison Access . | . . . Total Hacks 9 | . 9 . Successful 4 | . 4 . Failed 5 | . 5 . Catastrophic . | . . . Database Lockouts . | . . . Manual . | . . . Terminals 9 | . 9 . Fabricators . | . . . Repair Stations . | . . . Recycling Units . | . . . Scanalyzers . | . . . Garrison Access . | . . . Terminal Hacks 4 | . 4 . Prototype ID Bank 2 | . 2 . Emergency Access Points 1 | . 1 . Locate Traps 1 | . 1 . Fabricator Hacks . | . . . Repair Station Hacks . | . . . Recycling Unit Hacks . | . . . Scanalyzer . | . . . Garrison Access Hacks . | . . . Unauthorized Hacks . | . . . Terminals . | . . . Fabricators . | . . . Repair Stations . | . . . Recycling Units . | . . . Scanalyzers . | . . . Garrison Access . | . . . Data Cores Recovered . | . . . Used . | . . . Hacking Detections 3 | . 3 . Full Trace Events 1 | . 1 . Feedback Events . | . . . Feedback Blocked . | . . . Robot Schematics Acquired . | . . . Robots Built . | . . . Matter . | . . . Time . | . . . Total Robot Build Rating . | . . . Part Schematics Acquired . | . . . Parts Built . | . . . Matter . | . . . Time . | . . . Total Part Build Rating . | . . . Parts Repaired . | . . . Time . | . . . Parts Recycled . | . . . Recycled Matter . | . . . Retrieved Matter . | . . . Retrieved Components . | . . . Parts Scanalyzed . | . . . Part Schematics Acquired . | . . . Parts Damaged . | . . . Bothacking | -11 -10 -9 ------------ Run | Scr Mat Mat Used RIF Installer . | . . . Robots Hacked . | . . . Non-combat . | . . . Combat . | . . . Robot Hacks Applied . | . . . Relay Couplers Released . | . . . Robots Rewired . | . . . Allies Hacked . | . . . Hacks Repelled . | . . . Allies | -11 -10 -9 -------- Run | Scr Mat Mat Total Allies . | . . . Largest Group . | . . . Highest-Rated Group . | . . . Highest-Rated Ally . | . . . Total Orders . | . . . Ally Attacks . | . . . Total Damage . | . . . Kills . | . . . Allies Corrupted . | . . . Allies Melted . | . . . Intel | -11 -10 -9 ------- Run | Scr Mat Mat Robot Analysis Total . | . . . Derelict Logs Recovered . | . . . Drone Launches . | . . . Drone Recoveries . | . . . Exploration | -11 -10 -9 ------------- Run | Scr Mat Mat Turns Passed 304 | 60 149 95 Spaces Moved 278 | 51 146 81 Core 7 | 7 . . Treads . | . . . Legs . | . . . Wheels 252 | 44 146 62 Hover 19 | . . 19 Flight . | . . . Fastest Speed 50 | 50 85 56 Average Speed 86 | 84 89 82 Slowest Speed 90 | 90 90 90 Overloaded Moves . | . . . Propulsion Burnouts . | . . . Robots Hopped . | . . . Cave-ins Triggered . | . . . Exploration Rate (%) 17 | 3 39 11 Regions Visited 2 Branch Regions . Pre-discovered Areas . | . . . Known Exits Taken . | . . . Unknown Exits Taken 2 | 1 1 . Scrap Searched . | . . . Spaces Dug . | . . . Terrain Destroyed . | . . . Melee . | . . . Projectile . | . . . AOE . | . . . Terrain Rammed . | . . . Walls Destroyed . | . . . Machines Disabled . | . . . Actions | -11 -10 -9 --------- Run | Scr Mat Mat Total 326 | 64 161 101 Wait 7 | 6 1 . Move 276 | 50 145 81 Hop . | . . . Pick Up 10 | 2 3 5 Fast Attach 7 | 6 . 1 Attach 5 | . 3 2 Detach 1 | . . 1 Swap 4 | . 2 2 Drop 8 | . 5 3 Fire 8 | . 2 6 Melee . | . . . Ram . | . . . Kick . | . . . Crush . | . . . Escape Stasis . | . . . Rewire . | . . . Trap . | . . . Miscellaneous . | . . . Route ------- -11/Scrapyard -10/Materials (discovered 2 exits: [*Mat] / [*Min]) -9/Materials History --------- Turn | Location | Event 26 | -11/Scrapyard | Discovered new exit (range 16) 61 | -11/Scrapyard | Entered Materials 140 | -10/Materials | Discovered new exit (range 13) 207 | -10/Materials | Discovered new exit (range 4) 210 | -10/Materials | Entered another Materials area 210 | -9/Materials | Evolved 2 slots: Power x1, Utility x1 305 | -9/Materials | Self-destructed Last Messages --------------- GOAL=ESCAPE Acquired Hrd. Light Armor Plating. Dropped Lgt. Ion Engine. Acquired Lgt. Ion Engine. W-16 Scout distress signal alerts nearby ally. W-16 Scout destroyed. O-16 Technician: "IFF HANDSHAKE FAILED. SECURING TERMINAL." Terminal disabled. O-16 Technician destroyed. Acquired 20 matter. Acquired Hacking Suite. Dropped Hrd. Light Armor Plating. Acquired Hover Unit. Dropped Sml. Storage Unit. A-02 Transporter destroyed. Acquired Flail. Acquired 43 matter. ALERT: Hostiles spotted, dispatching reinforcements to Terminal M006. S-10 Pest destroyed. Map ----- +----------------------------------------------------+ | | | | | | | | | ????????????????????????????????????????????? | | ????????????????????????????????????????????? | | ????????????????????????????????????????????? | | ????????????????????????????????????????????? | | ????????????????????????????????????????????? | | ????????????????????????????????????????????? | | ????????????????????????????????????????????? | | ???????????????????????? #??????????????????? | | ???????????????????????? #??????????????????? | | ???????????????????????? #??????????????????? | | ??????????????????????## #??????????????????? | | ?????????????????????? #??????????????????? | | ?????????????????????# +??????????????????? | | ?????????????????????# #??????????????????? | | ?????????????????????/ #??????????????????? | | ?????????????????????# #??????????????????? | | ?????????????????????# #??????????????????? | | ?????????????????????# #??????????????????? | | ?????????????????????# s#??????????????????? | | ????????##############ss #??????????????????? | | ????? = #??????????????????? | | ?????Y @s[ #??????????????????? | | ??????????# #########s #??????????????????? | | ??????????# ?????????# #??????????? ????? | | ??????????# ?????????# ###+#+### ????? | | ??????????# ????????# ????? | | ??????????# ????????# #????????? | | ??????????# ????????# #????????? | | ??????????# ????????# #####+###+#????????? | | ??????????# ????????# #??????????????????? | | ??????????# ????????#=/!#??????????????????? | | ??????????# ???????## /##?????????????????? | | ??????????# ####+### /// #?????????????????? | | ??????????# #?????????????????? | | ??????????# #?????????????????? | | ??????????# #?????????????????? | | ??????????# ###/### #?????????????????? | | ??????????# ## ! ###+#######?????????????? | | ??????????# ## * !# #?????????????? | | ??????????# ## # #?????????????? | | ??????????# ## !+ #?????????????? | | ??????????# ## "" # """ """ #?????????????? | | ??????????# ## "T # """ """???????????????? | | ??????????# ## "" # """ ""????????????????? | | ??????????# ## "" # ????????????????? | | ??????????# ## # ????????????????? | +----------------------------------------------------+ Best States ------------- Heat Dissipation 28 Energy Generation 15 Energy Capacity 150 Matter Stores 225 Matter Capacity 300 Sight Range 16 Terrain Scan Density 10 Armor Coverage 150 Resistance: KI 20 Resistance: TH 20 Resistance: EX 20 Resistance: EM 20 Resistance: I 20 Resistance: S 20 Resistance: P 20 Evasion (%) 53 Offensive Hacking 20 Item Schematics ----------------- None Robot Schematics ------------------ None Fabricated ------------ Nothing Alien Tech Used ----------------- None Achievements -------------- None Challenges ------------ None Game ------ Seed DeepInsulatedSegregator Manual? 0 Play Time 00:05:44 Cumulative 10.9 hours Start 2021.01.04 @ 16:50:23 End 2021.01.04 @ 20:13:55 Sessions 3 Manual Loads 0 Difficulty Adventurer Special Mode None Game No. 23 Rogue 0 Adventurer 23 Explorer 0 Win Type - Total 0 Types 0/0/0/0/0/0/0/0/0 Lore% 13 Gallery% 22 Achievement% 17 Wizard Run 0 Options --------- ASCII 0 Keyboard 0 Movement Mouse Keybinds 0 Fullscreen 2 Font 20/SmallcapsGlow Map View 66x50 Tactical HUD 0 Map Filters NONE Filters NONE Steam 1 RUN: 0f940e7b-cccb-4a6e-a05d-adb84b375578